bitfinex/quotes_BTCUSD_20251024
["timestamp","ask_amount","ask_price","bid_price","bid_amount"]
[1761280145913,0.91949744,111090.0,111080.0,0.01719881]
[1761280147385,0.91949744,111090.0,111080.0,0.01719871]
[1761280150635,0.61106792,111090.0,111080.0,0.01719871]
[1761280150815,0.91949744,111090.0,111080.0,0.01719871]
[1761280151012,0.18124891,111090.0,111080.0,0.01719871]
[1761280151230,0.00121471,111090.0,111080.0,0.01719871]
[1761280151426,0.00121471,111090.0,111080.0,0.00048584]
[1761280154324,0.00121471,111090.0,111080.0,0.2883603]
[1761280154490,0.00121471,111090.0,111080.0,0.29445852]
[1761280154938,0.00121471,111090.0,111080.0,0.32150546]
[1761280155726,123.32579436,111120.0,111080.0,0.32150546]
[1761280155893,122.93099436,111120.0,111080.0,0.32150546]
[1761280156324,122.93099436,111120.0,111080.0,0.2974022]
[1761280156537,0.1800023,111110.0,111080.0,0.2974022]
[1761280156798,0.48843182,111110.0,111080.0,0.29740158]
[1761280157290,0.48843182,111110.0,111080.0,0.11735179]
[1761280157291,0.18002126,111100.0,111080.0,0.11735179]
[1761280157509,0.18002126,111100.0,111080.0,0.09030485]
[1761280158466,0.48845078,111100.0,111080.0,0.00048584]
[1761280161399,0.18002126,111100.0,111080.0,0.00048584]
[1761280161619,0.48845078,111100.0,111080.0,0.00048584]
[1761280161817,0.2818587,111100.0,111080.0,0.00048584]
[1761280162019,0.46187996,111100.0,111080.0,0.00048584]
[1761280163885,0.48846372,111090.0,111080.0,0.00048584]
[1761280164737,0.1800342,111090.0,111080.0,0.00048584]
[1761280164948,0.48846372,111090.0,111080.0,0.00048584]
[1761280166240,0.1800342,111090.0,111080.0,0.00048584]
[1761280166467,0.48846372,111090.0,111080.0,0.00048584]
[1761280169758,0.51565495,111090.0,111080.0,0.00048584]
[1761280170190,0.48846372,111090.0,111080.0,0.00048584]
[1761280170742,0.1800342,111090.0,111080.0,0.00048584]
[1761280170958,0.48846372,111090.0,111080.0,0.00048584]
[1761280172386,0.57828273,111090.0,111080.0,0.00048584]
[1761280176153,0.26985321,111090.0,111080.0,0.00048584]
[1761280176364,0.57828273,111090.0,111080.0,0.00048584]
[1761280179268,0.26985321,111090.0,111080.0,0.00048584]
[1761280179484,0.18002126,111100.0,111080.0,0.00048584]
[1761280182975,0.48845078,111100.0,111080.0,0.00048584]
[1761280183381,0.1800342,111090.0,111080.0,0.00048584]
[1761280184415,0.18002126,111100.0,111080.0,0.00048584]
[1761280184654,0.34,111090.0,111080.0,0.00048584]
[1761280190989,0.82846372,111090.0,111080.0,0.00048584]
[1761280191194,0.5200342,111090.0,111080.0,0.00048584]
[1761280196743,0.82838694,111090.0,111080.0,0.00048584]
[1761280197148,0.34,111090.0,111080.0,0.00048584]
[1761280197608,0.33991927,111090.0,111080.0,0.00048584]
[1761280201008,0.33991927,111090.0,111080.0,0.27035526]
[1761280201438,0.34,111100.0,111080.0,0.32150673]
[1761280201866,0.34,111100.0,111090.0,0.1800342]
[1761280202292,0.64835274,111100.0,111090.0,0.02704653]
[1761280202500,0.64869204,111100.0,111080.0,0.27035101]
[1761280202705,0.82871144,111100.0,111080.0,0.18053545]
[1761280202919,0.5203587,111100.0,111080.0,0.20758442]
[1761280203148,0.0003393,111100.0,111090.0,0.26985321]
[1761280203364,0.0003393,111100.0,111090.0,0.45363647]
[1761280203573,0.0003393,111100.0,111090.0,0.46147642]
[1761280204225,0.0003393,111100.0,111090.0,0.30179642]
[1761280204441,0.0003393,111100.0,111090.0,0.48547427]
[1761280204859,0.0003393,111100.0,111090.0,0.51911642]
[1761280205070,0.0003393,111100.0,111090.0,0.56705768]
[1761280205535,0.0003393,111100.0,111090.0,0.51911642]
[1761280206375,0.0003393,111100.0,111090.0,0.32576893]
[1761280206596,0.0003393,111100.0,111090.0,0.51110572]
[1761280207232,0.0003393,111100.0,111090.0,0.29382572]
[1761280207438,0.0003393,111100.0,111090.0,0.45346572]
[1761280207648,0.0003393,111100.0,111090.0,0.29382572]
[1761280207871,0.0003393,111100.0,111090.0,0.45346572]
[1761280211941,0.0003393,111100.0,111090.0,0.29382572]
[1761280212148,0.0003393,111100.0,111090.0,0.45346572]
[1761280212707,0.0003393,111100.0,111090.0,0.29382572]
[1761280212919,0.0003393,111100.0,111090.0,0.45346572]
[1761280214123,0.30869204,111100.0,111090.0,0.45346572]
[1761280214330,0.30869204,111100.0,111090.0,0.42949321]
[1761280214953,0.30869204,111100.0,111090.0,0.26985321]
[1761280215156,0.30869204,111100.0,111090.0,0.42949321]
[1761280215356,0.30869204,111100.0,111090.0,0.26985321]
[1761280215575,0.30869204,111100.0,111090.0,0.42949321]
[1761280215964,0.30869204,111100.0,111090.0,0.26985321]
[1761280216165,0.0003393,111100.0,111090.0,0.42949321]
[1761280216368,0.30869204,111100.0,111090.0,0.42949321]
[1761280216802,0.30869204,111100.0,111090.0,0.08981901]
[1761280217159,0.61704478,111100.0,111080.0,0.20450796]
[1761280217370,0.30835274,111090.0,111080.0,0.45396697]
[1761280217581,0.30835274,111090.0,111080.0,0.29432697]
[1761280217787,0.30835274,111090.0,111080.0,0.42999446]
[1761280218611,0.30835274,111090.0,111080.0,0.27035446]
[1761280219869,0.30835274,111090.0,111080.0,0.00048584]
[1761280220351,0.30835274,111090.0,111080.0,0.18053625]
[1761280220603,0.30835274,111090.0,111080.0,0.00048584]
[1761280221166,0.30835274,111090.0,111080.0,0.18053625]
[1761280223051,0.30835274,111090.0,111080.0,0.00048584]
[1761280223985,0.0003393,111100.0,111080.0,0.1805354]
[1761280224187,0.18035738,111100.0,111080.0,0.1805354]
[1761280224419,0.30835274,111090.0,111080.0,0.1805354]
[1761280225464,0.30869204,111100.0,111080.0,0.1805354]
[1761280226608,0.0003393,111100.0,111090.0,0.1800342]
[1761280227012,0.30869204,111100.0,111080.0,0.45397369]
[1761280227220,0.0003393,111100.0,111080.0,0.45397369]
[1761280227465,0.0003393,111100.0,111090.0,0.1800342]
[1761280227642,0.30869204,111100.0,111090.0,0.1800342]
[1761280229127,0.0003393,111100.0,111090.0,0.28785663]
[1761280229334,0.0003393,111100.0,111090.0,0.26985321]
[1761280229915,0.30869204,111100.0,111090.0,0.26985321]
[1761280230396,0.0003393,111100.0,111090.0,0.26985321]
[1761280230746,0.30869204,111100.0,111090.0,0.26985321]
[1761280231678,0.0003393,111100.0,111090.0,0.26985321]
[1761280232311,0.0003393,111100.0,111090.0,0.29383249]
[1761280233096,0.30869204,111100.0,111090.0,0.29383249]
[1761280234254,0.61704478,111100.0,111080.0,0.23645789]
[1761280234464,0.30835274,111090.0,111080.0,0.4858769]
[1761280235066,0.30835274,111090.0,111080.0,0.45393369]
[1761280235862,0.30835274,111090.0,111080.0,0.02446512]
[1761280237587,0.18035741,111100.0,111080.0,0.02446512]
[1761280237797,0.30835274,111090.0,111080.0,0.02446512]
[1761280238212,0.48838694,111090.0,111080.0,0.00048584]
[1761280238779,0.29778316,111090.0,111080.0,0.00048584]
[1761280238996,0.48838694,111090.0,111080.0,0.00048584]
[1761280245502,0.1800342,111090.0,111080.0,0.00048584]
[1761280245798,0.48838694,111090.0,111080.0,0.00048584]
[1761280246236,0.48871015,111100.0,111080.0,0.00048584]
[1761280246237,0.18035741,111100.0,111080.0,0.00048584]
[1761280246437,0.30835274,111090.0,111080.0,0.00048584]
[1761280252555,0.48838694,111090.0,111080.0,0.00048584]
[1761280256766,0.48841319,111090.0,111080.0,0.00048584]
[1761280257782,0.1800342,111090.0,111080.0,0.00048584]
[1761280257986,0.48841319,111090.0,111080.0,0.00048584]
[1761280259278,0.1800342,111090.0,111080.0,0.00048584]
[1761280259630,0.30837899,111090.0,111080.0,0.00048584]
[1761280259861,0.4887364,111100.0,111080.0,0.00048584]
[1761280260157,0.4887364,111100.0,111080.0,0.18053553]
[1761280261073,0.4883971,111100.0,111080.0,0.18053553]
[1761280261487,0.18001811,111100.0,111080.0,0.18053553]
[1761280261716,0.4883971,111100.0,111080.0,0.18053553]
[1761280262976,0.4883971,111100.0,111080.0,0.00048584]
[1761280263829,0.4883971,111100.0,111080.0,0.18053479]
[1761280267568,0.4883971,111100.0,111080.0,0.20455696]
[1761280269185,0.18001811,111100.0,111080.0,0.20455696]
[1761280269392,0.4883971,111100.0,111080.0,0.20455696]
[1761280271058,0.30837899,111090.0,111080.0,0.02450801]
[1761280271270,0.4883971,111100.0,111080.0,0.02450801]
[1761280272885,0.30837899,111090.0,111080.0,0.02450801]
[1761280274268,0.18001811,111100.0,111080.0,0.02450801]
[1761280274688,0.4883971,111100.0,111080.0,0.02450801]
[1761280275027,0.3074734,111100.0,111080.0,0.02450801]
[1761280275638,0.48749151,111100.0,111080.0,0.02450801]
[1761280276037,0.48749151,111100.0,111080.0,0.20455826]
[1761280277787,0.4883971,111100.0,111080.0,0.20455826]
[1761280278853,0.4883971,111100.0,111080.0,0.02450801]
[1761280279359,0.30837899,111090.0,111080.0,0.20455693]
[1761280280240,0.30837899,111090.0,111080.0,0.02450801]
[1761280281237,0.48841319,111090.0,111080.0,0.02450801]
[1761280281985,0.48841319,111090.0,111080.0,0.00048584]
[1761280283669,1.13679218,111090.0,111080.0,0.00048584]
[1761280285675,0.5200342,111090.0,111080.0,0.00048584]
[1761280285892,122.4335763,111120.0,111100.0,0.18001316]
[1761280286101,122.23267948,111120.0,111110.0,0.08981901]
[1761280286315,122.54105847,111120.0,111100.0,0.20403533]
[1761280286521,122.23267948,111120.0,111110.0,0.1800018]
[1761280292483,122.23267948,111120.0,111110.0,0.28782099]
[1761280292670,122.23267948,111120.0,111110.0,0.26982081]
[1761280292927,122.23267948,111120.0,111110.0,0.42942081]
[1761280293171,122.23267948,111120.0,111110.0,0.45344298]
[1761280293398,122.23267948,111120.0,111110.0,0.48048017]
[1761280293652,122.23267948,111120.0,111110.0,0.32088017]
[1761280294092,122.23267948,111120.0,111110.0,0.48048017]
[1761280296321,122.23267948,111120.0,111110.0,0.69706245]
[1761280296553,122.23267948,111120.0,111110.0,0.88860566]
[1761280296759,122.23335794,111120.0,111110.0,0.86458349]
[1761280296970,122.23335794,111120.0,111110.0,0.86454349]
[1761280297418,122.23335794,111120.0,111110.0,0.89652196]
[1761280297655,122.23335794,111120.0,111110.0,0.91217241]
[1761280298315,122.23335794,111120.0,111110.0,0.97381911]
[1761280298535,122.23335794,111120.0,111110.0,0.97195748]
[1761280298745,122.23335794,111120.0,111110.0,0.98882343]
[1761280298964,122.20634674,111120.0,111110.0,0.93381832]
[1761280299201,122.12947671,111120.0,111110.0,0.93381832]
[1761280299434,122.12947671,111120.0,111110.0,0.82746379]
[1761280299435,121.95697462,111120.0,111110.0,0.82746379]
[1761280299657,121.90295222,111120.0,111110.0,1.22510379]
[1761280299872,121.87594102,111120.0,111110.0,1.16793109]
[1761280300122,121.84892982,111120.0,111110.0,1.24871872]
[1761280300343,121.82191862,111120.0,111110.0,1.16789109]
[1761280300566,121.79490742,111120.0,111110.0,1.23130913]
[1761280300796,121.76789622,111120.0,111110.0,1.23130913]
[1761280301005,121.74088502,111120.0,111110.0,1.23130913]
[1761280301222,121.71387382,111120.0,111110.0,1.23130913]
[1761280302116,121.71387382,111120.0,111110.0,0.83370913]
[1761280302357,121.71387382,111120.0,111110.0,1.23122913]
[1761280302616,121.54108805,111120.0,111110.0,1.17362913]
[1761280302851,121.51407685,111120.0,111110.0,1.23122913]
[1761280303072,121.11903485,111120.0,111110.0,1.16781109]
[1761280303310,119.80738547,111120.0,111110.0,1.23109405]
[1761280303553,119.78037427,111120.0,111110.0,1.23109405]
[1761280303770,119.72635187,111120.0,111110.0,1.23109405]
[1761280303980,119.69934067,111120.0,111110.0,1.23109405]
[1761280304208,117.6502897,111120.0,111110.0,1.26279109]
[1761280304460,115.54164224,111120.0,111110.0,1.29739208]
[1761280304671,115.51463104,111120.0,111110.0,1.37933971]
[1761280304895,115.3809773,111120.0,111110.0,1.37933971]
[1761280305108,114.9859353,111120.0,111110.0,1.37933971]
[1761280305332,114.65575748,111120.0,111110.0,1.37933971]
[1761280305555,114.60173508,111120.0,111110.0,1.37933971]
[1761280305778,113.33590426,111120.0,111110.0,1.37933971]
[1761280306004,113.33590426,111120.0,111110.0,1.34853418]
[1761280306005,113.2069175,111120.0,111110.0,1.34853418]
[1761280306220,112.81189999,111120.0,111110.0,1.42932181]
[1761280306468,112.62990622,111120.0,111110.0,1.42932181]
[1761280306671,112.60296886,111120.0,111110.0,1.42932181]
[1761280306888,112.57598215,111120.0,111110.0,0.81424181]
[1761280307102,112.54899544,111120.0,111110.0,1.39301953]
[1761280307312,110.98481217,111120.0,111110.0,1.3122319]
[1761280307511,110.95782546,111120.0,111110.0,1.37519186]
[1761280307731,110.95782546,111120.0,111110.0,1.03219186]
[1761280307940,110.95782546,111120.0,111110.0,1.40837414]
[1761280308364,110.53880795,111120.0,111110.0,1.40837414]
[1761280308570,110.51182124,111120.0,111110.0,1.40837414]
[1761280308778,109.32573877,111120.0,111110.0,1.40837414]
[1761280308986,109.29875206,111120.0,111110.0,1.40837414]
[1761280309185,109.27176535,111120.0,111110.0,1.40837414]
[1761280309391,108.97708609,111120.0,111110.0,1.40837414]
[1761280309668,108.95009938,111120.0,111110.0,1.40837414]
[1761280309973,108.89612596,111120.0,111110.0,1.40837414]
[1761280310179,108.86913925,111120.0,111110.0,1.40837414]
[1761280310384,107.75743934,111120.0,111110.0,1.34541418]
[1761280310793,107.75743934,111120.0,111110.0,1.40837414]
[1761280310996,107.73045263,111120.0,111110.0,1.40837414]
[1761280311202,107.70346592,111120.0,111110.0,1.40837414]
[1761280311332,106.54968299,111120.0,111110.0,1.40837414]
[1761280311536,106.52269628,111120.0,111110.0,1.40837414]
[1761280311754,106.49570957,111120.0,111110.0,1.34541418]
[1761280311965,106.4687229,111120.0,111110.0,1.34541418]
[1761280312340,106.44173623,111120.0,111110.0,1.34541418]
[1761280312542,105.36573902,111120.0,111110.0,1.44026418]
[1761280313294,105.33875235,111120.0,111110.0,1.44026418]
[1761280313505,105.31176568,111120.0,111110.0,1.44026418]
[1761280313725,105.28477901,111120.0,111110.0,1.44026418]
[1761280313922,104.13219971,111120.0,111110.0,1.44026418]
[1761280314132,104.10521304,111120.0,111110.0,1.50315524]
[1761280314347,104.07822637,111120.0,111110.0,1.50315524]
[1761280315507,104.07822637,111120.0,111110.0,1.46697296]
[1761280316293,104.07822637,111120.0,111110.0,1.40830524]
[1761280317374,104.07822637,111120.0,111110.0,1.37512296]
[1761280317578,104.07822637,111120.0,111110.0,0.9762319]
[1761280317812,104.08022637,111120.0,111110.0,0.9762319]
[1761280318015,104.08022637,111120.0,111110.0,0.7012719]
[1761280318218,104.08022637,111120.0,111110.0,1.10552314]
[1761280318845,104.08022637,111120.0,111110.0,1.13870542]
[1761280319313,104.08022637,111120.0,111110.0,1.14170542]
[1761280319514,104.07822637,111120.0,111110.0,1.13770542]
[1761280319724,104.07822637,111120.0,111110.0,1.13470542]
[1761280319914,104.08022637,111120.0,111110.0,1.13870542]
[1761280320114,104.08022637,111120.0,111110.0,1.13670542]
[1761280320937,104.08222637,111120.0,111110.0,1.14070542]
[1761280321372,104.08222637,111120.0,111110.0,1.20359648]
[1761280321593,104.08222637,111120.0,111110.0,0.27867154]
[1761280321742,104.08222637,111120.0,111110.0,0.49739154]
[1761280322557,104.08022637,111120.0,111110.0,0.49539154]
[1761280322757,104.07822637,111120.0,111110.0,0.49139154]
[1761280322980,104.08022637,111120.0,111110.0,0.49739154]
[1761280323216,104.08022637,111120.0,111110.0,0.86957382]
[1761280323418,104.08022637,111120.0,111110.0,0.86757382]
[1761280323627,104.08222637,111120.0,111110.0,0.87157382]
[1761280324221,104.08222637,111120.0,111110.0,0.90029981]
[1761280324458,104.08222637,111120.0,111110.0,0.90229981]
[1761280324680,104.08222637,111120.0,111110.0,1.01215361]
[1761280325127,104.08222637,111120.0,111110.0,0.98308744]
[1761280325595,104.08222637,111120.0,111110.0,1.01215361]
[1761280326014,104.08222637,111120.0,111110.0,0.86984426]
[1761280326206,104.08222637,111120.0,111110.0,0.92740426]
[1761280327021,104.08222637,111120.0,111110.0,0.95613025]
[1761280327192,104.08222637,111120.0,111110.0,0.92740426]
[1761280327599,103.9607317,111120.0,111110.0,0.90440879]
[1761280327798,103.9607317,111120.0,111110.0,0.98386064]
[1761280328672,103.9607317,111120.0,111110.0,0.95479447]
[1761280329075,103.77817909,111120.0,111110.0,0.98386064]
[1761280334063,103.77817909,111120.0,111110.0,0.96821019]
[1761280336188,103.77817909,111120.0,111110.0,0.99522863]
[1761280337260,103.77817909,111120.0,111110.0,0.95142714]
[1761280337465,103.77817909,111120.0,111110.0,1.0092193]
[1761280337675,103.77817909,111120.0,111110.0,0.76135313]
[1761280337907,103.77817909,111120.0,111110.0,1.0089393]
[1761280338636,103.77817909,111120.0,111110.0,0.97987313]
[1761280339029,103.77817909,111120.0,111110.0,1.0089393]
[1761280339263,103.6458922,111120.0,111110.0,0.92948745]
[1761280339671,103.6458922,111120.0,111110.0,1.00909873]
[1761280340739,103.6458922,111120.0,111110.0,0.95130657]
[1761280341085,103.6458922,111120.0,111110.0,1.00909873]
[1761280342436,103.6458922,111120.0,111110.0,0.92948745]
[1761280343098,103.6458922,111120.0,111110.0,0.90042128]
[1761280343284,103.6458922,111120.0,111110.0,0.92948745]
[1761280343929,103.6458922,111120.0,111110.0,0.91549678]
[1761280344131,103.6458922,111120.0,111110.0,0.88643061]
[1761280346672,103.6458922,111120.0,111110.0,1.04315261]
[1761280349145,103.51361201,111120.0,111110.0,1.04315261]
[1761280349384,103.51361201,111120.0,111110.0,1.10893644]
[1761280349719,103.51361201,111120.0,111110.0,1.13800261]
[1761280349927,103.51361201,111120.0,111110.0,1.02489993]
[1761280350423,103.51161201,111120.0,111110.0,1.02289993]
[1761280350650,103.50961201,111120.0,111110.0,1.04104894]
[1761280350859,103.50961201,111120.0,111110.0,1.43524894]
[1761280351063,102.44265793,111120.0,111110.0,1.43524894]
[1761280351273,102.44265793,111120.0,111110.0,1.43324894]
[1761280351687,102.44465793,111120.0,111110.0,1.45124894]
[1761280352045,102.44265793,111120.0,111110.0,1.43624894]
[1761280352390,102.44365793,111120.0,111110.0,1.44924894]
[1761280353182,102.44365793,111120.0,111110.0,1.42709993]
[1761280353782,102.44365793,111120.0,111110.0,1.03489993]
[1761280355642,102.44365793,111120.0,111110.0,0.75858777]
[1761280355837,102.44365793,111120.0,111110.0,1.18535376]
[1761280355986,102.44365793,111120.0,111110.0,1.21441993]
[1761280356393,102.44365793,111120.0,111110.0,0.81637993]
[1761280356797,102.44365793,111120.0,111110.0,1.21437993]
[1761280357401,102.44365793,111120.0,111110.0,0.81637993]
[1761280357614,102.44365793,111120.0,111110.0,1.18531376]
[1761280359172,102.32218574,111120.0,111110.0,1.17076061]
[1761280360610,102.32218574,111120.0,111110.0,0.74403462]
[1761280360876,102.32218574,111120.0,111110.0,1.14199462]
[1761280361087,102.32218574,111120.0,111110.0,1.17072061]
[1761280361438,102.32218574,111120.0,111110.0,1.28245226]
[1761280362042,102.32218574,111120.0,111110.0,0.88449226]
[1761280362257,102.32218574,111120.0,111110.0,1.28241226]
[1761280362703,102.32218574,111120.0,111110.0,0.88449226]
[1761280362851,102.32218574,111120.0,111110.0,1.28237226]
[1761280364209,102.32218574,111120.0,111110.0,1.29645102]
[1761280364566,102.32218574,111120.0,111110.0,0.89857102]
[1761280364782,102.32218574,111120.0,111110.0,1.29645102]
[1761280366410,102.32218574,111120.0,111110.0,0.89857102]
[1761280366767,102.32218574,111120.0,111110.0,1.11649102]
[1761280367355,102.13723816,111120.0,111110.0,1.00475937]
[1761280368153,102.10547396,111120.0,111110.0,3.03382554]
[1761280368394,101.49095875,111120.0,111110.0,3.12327411]
[1761280368635,101.49095875,111120.0,111110.0,3.14408144]
[1761280368636,100.20761228,111120.0,111110.0,3.14408144]
[1761280368853,99.79485003,111120.0,111110.0,3.19817144]
[1761280369086,99.74652809,111120.0,111110.0,3.19817144]
[1761280369267,99.664279,111120.0,111110.0,3.19517144]
[1761280369531,99.24870991,111120.0,111110.0,3.19517144]
[1761280369729,97.83962537,111120.0,111110.0,3.14408144]
[1761280369950,97.77753438,111120.0,111110.0,3.29348144]
[1761280370154,97.75054094,111120.0,111110.0,3.29048144]
[1761280370363,97.35441049,111120.0,111110.0,3.29048144]
[1761280370590,97.32641705,111120.0,111110.0,3.28048144]
[1761280370796,96.2401349,111120.0,111110.0,3.28048144]
[1761280371010,96.21414146,111120.0,111110.0,3.29348144]
[1761280371215,96.18714802,111120.0,111110.0,3.29348144]
[1761280371432,95.79101757,111120.0,111110.0,3.4048649]
[1761280371636,95.76402413,111120.0,111110.0,3.4048649]
[1761280371873,95.70133382,111120.0,111110.0,3.29348144]
[1761280372071,95.67434038,111120.0,111110.0,3.29348144]
[1761280372287,94.53779433,111120.0,111110.0,3.27940268]
[1761280372498,94.51080089,111120.0,111110.0,3.29589529]
[1761280372726,94.36238192,111120.0,111110.0,1.01650462]
[1761280372968,94.21298192,111120.0,111110.0,0.86463352]
[1761280373228,94.21298192,111120.0,111110.0,0.6096188]
[1761280373450,94.21298192,111120.0,111110.0,0.9772588]
[1761280373665,94.21298192,111120.0,111110.0,0.9250588]
[1761280373874,94.21298192,111120.0,111110.0,0.5850588]
[1761280374089,94.21298192,111120.0,111110.0,0.7068188]
[1761280374304,94.21198192,111120.0,111110.0,1.12011224]
[1761280374528,94.18498848,111120.0,111110.0,1.10769364]
[1761280374735,94.15799822,111120.0,111110.0,1.10069364]
[1761280374953,94.13100796,111120.0,111110.0,1.10069364]
[1761280375160,94.1040177,111120.0,111110.0,1.22304482]
[1761280375374,94.0320186,111120.0,111110.0,3.20904482]
[1761280375584,93.97429553,111120.0,111110.0,3.23302957]
[1761280375823,93.89299373,111120.0,111110.0,3.24602957]
[1761280376034,93.86600347,111120.0,111110.0,3.13467839]
[1761280376260,93.4045628,111120.0,111110.0,3.13267839]
[1761280376462,93.37757254,111120.0,111110.0,3.29476969]
[1761280376652,93.32359202,111120.0,111110.0,3.29476969]
[1761280376883,93.29660176,111120.0,111110.0,3.29476969]
[1761280377082,93.2696115,111120.0,111110.0,3.29476969]
[1761280377286,93.24262124,111120.0,111110.0,3.29476969]
[1761280377493,93.21563098,111120.0,111110.0,3.29476969]
[1761280377673,93.18864072,111120.0,111110.0,3.29476969]
[1761280377875,93.13765046,111120.0,111110.0,3.29476969]
[1761280378120,93.0021278,111120.0,111110.0,3.29476969]
[1761280378287,91.92697437,111120.0,111110.0,3.29476969]
[1761280378515,91.82453464,111120.0,111110.0,3.24478759]
[1761280378872,91.77055412,111120.0,111110.0,3.08569629]
[1761280379078,91.59416386,111120.0,111110.0,3.23509629]
[1761280379283,91.24392148,111120.0,111110.0,3.3219153]
[1761280379504,83.37362958,111120.0,111110.0,4.59106505]
[1761280379728,81.78782701,111120.0,111110.0,4.55185122]
[1761280379943,81.17322721,111120.0,111110.0,3.19897347]
[1761280380159,81.08681814,111120.0,111110.0,3.19897347]
[1761280380371,80.21842556,111120.0,111110.0,3.19487443]
[1761280380577,79.9389243,111120.0,111110.0,4.5325789]
[1761280380792,79.89214634,111120.0,111110.0,3.18387443]
[1761280381008,79.18946396,111120.0,111110.0,3.09802443]
[1761280381219,78.66191776,111120.0,111110.0,3.08902443]
[1761280381463,74.4124174,111120.0,111110.0,4.71557306]
[1761280381694,73.15759388,111120.0,111110.0,4.63272306]
[1761280381913,72.02515382,111120.0,111110.0,4.62343061]
[1761280382168,63.08667263,111120.0,111110.0,3.115583]
[1761280382387,59.31534949,111120.0,111110.0,1.215584]
[1761280382606,58.47843806,111120.0,111110.0,1.211584]
[1761280382826,58.18148343,111120.0,111110.0,1.216584]
[1761280383036,57.51704858,111120.0,111110.0,1.216584]
[1761280383223,57.49007235,111120.0,111110.0,1.202584]
[1761280383387,57.46309612,111120.0,111110.0,1.213584]
[1761280383571,57.39565554,111120.0,111110.0,1.218584]
[1761280383780,56.75021506,111120.0,111110.0,1.218584]
[1761280383991,56.72323883,111120.0,111110.0,1.231584]
[1761280384208,56.6962626,111120.0,111110.0,1.19540172]
[1761280384402,56.66928637,111120.0,111110.0,1.20872826]
[1761280384617,56.64231014,111120.0,111110.0,1.16455223]
[1761280384816,56.02416056,111120.0,111110.0,0.81955223]
[1761280385408,56.02416056,111120.0,111110.0,0.82539223]
[1761280385611,56.02416056,111120.0,111110.0,0.80514156]
[1761280385819,56.02416056,111120.0,111110.0,0.77446601]
[1761280386083,54.78368791,111120.0,111110.0,0.91638119]
[1761280386298,54.62843988,111120.0,111110.0,1.24060524]
[1761280386508,54.54726046,111120.0,111110.0,1.26968366]
[1761280386706,54.49920843,111120.0,111110.0,1.26968366]
[1761280386896,53.91006604,111120.0,111110.0,1.26468366]
[1761280387113,53.8308215,111120.0,111110.0,1.27168366]
[1761280387351,52.96475709,111120.0,111110.0,1.18186465]
[1761280387581,52.70711036,111120.0,111110.0,1.13029489]
[1761280387802,52.04974284,111120.0,111110.0,1.21602329]
[1761280388024,51.37766331,111120.0,111110.0,1.42207113]
[1761280388235,50.72225039,111120.0,111110.0,1.92207113]
[1761280388481,50.67054047,111120.0,111110.0,1.92707113]
[1761280388679,50.04397013,111120.0,111110.0,1.92707113]
[1761280388891,49.99200905,111120.0,111110.0,1.92207113]
[1761280389112,49.96503282,111120.0,111110.0,1.70902329]
[1761280389329,49.07918294,111120.0,111110.0,1.79887329]
[1761280389545,49.00955396,111120.0,111110.0,1.71470516]
[1761280389767,48.94475228,111120.0,111110.0,1.73158267]
[1761280389979,48.35629907,111120.0,111110.0,1.73158267]
[1761280390195,48.32933435,111120.0,111110.0,1.73158267]
[1761280390410,48.26192255,111120.0,111110.0,1.73158267]
[1761280390626,48.14576901,111120.0,111110.0,1.73158267]
[1761280390846,47.49318311,111120.0,111110.0,1.73158267]
[1761280391092,47.46621839,111120.0,111110.0,1.73158267]
[1761280391346,47.43134931,111120.0,111110.0,1.73158267]
[1761280391545,46.8503693,111120.0,111110.0,1.73158267]
[1761280391752,46.77306429,111120.0,111110.0,1.97923037]
[1761280391960,46.72209957,111120.0,111110.0,1.97923037]
[1761280392183,46.09697282,111120.0,111110.0,1.97923037]
[1761280392396,45.92518921,111120.0,111110.0,1.97923037]
[1761280392607,45.35883789,111120.0,111110.0,1.97923037]
[1761280392809,45.33187317,111120.0,111110.0,1.97923037]
[1761280393016,45.30490845,111120.0,111110.0,1.97923037]
[1761280393230,44.77021827,111120.0,111110.0,1.97923037]
[1761280393437,44.74325355,111120.0,111110.0,1.82140168]
[1761280393644,44.71628883,111120.0,111110.0,1.82140168]
[1761280393885,44.1904425,111120.0,111110.0,1.82140168]
[1761280394087,44.16347778,111120.0,111110.0,1.83340168]
[1761280394306,44.13651306,111120.0,111110.0,1.83340168]
[1761280394533,43.65907084,111120.0,111110.0,1.83340168]
[1761280394760,43.56469432,111120.0,111110.0,1.80416744]
[1761280394965,43.02151267,111120.0,111110.0,1.96199613]
[1761280395224,42.99454795,111120.0,111110.0,1.96199613]
[1761280395426,42.96758323,111120.0,111110.0,1.96199613]
[1761280395633,42.36155625,111120.0,111110.0,1.96199613]
[1761280395844,42.33459153,111120.0,111110.0,1.76798516]
[1761280396060,42.30762681,111120.0,111110.0,1.76608638]
[1761280396274,41.81536034,111120.0,111110.0,1.80226866]
[1761280396489,41.78839562,111120.0,111110.0,1.80226866]
[1761280396697,41.7614309,111120.0,111110.0,1.80226866]
[1761280396903,41.19738809,111120.0,111110.0,1.80226866]
[1761280397105,41.17042337,111120.0,111110.0,1.80226866]
[1761280397314,40.71576281,111120.0,111110.0,1.80226866]
[1761280397535,40.68879809,111120.0,111110.0,1.80226866]
[1761280397735,40.52491633,111120.0,111110.0,1.72350282]
[1761280397965,39.16920041,111120.0,111110.0,1.68405196]
[1761280398192,37.55272175,111120.0,111110.0,1.69452819]
[1761280398419,35.69668683,111120.0,111110.0,2.02650245]
[1761280398649,35.20171362,111120.0,111110.0,4.04610296]
[1761280398909,33.70156134,111120.0,111110.0,2.04610296]
[1761280399139,30.72802365,111120.0,111110.0,2.08885308]
[1761280399363,30.18581009,111120.0,111110.0,2.08885308]
[1761280399591,27.52002665,111120.0,111110.0,1.68897308]
[1761280399811,25.74924651,111120.0,111110.0,1.68897308]
[1761280400029,22.41620277,111120.0,111110.0,1.68897308]
[1761280400270,20.99800609,111120.0,111110.0,1.67023301]
[1761280400460,20.68988781,111120.0,111110.0,1.8281724]
[1761280400678,20.24562144,111120.0,111110.0,1.8231724]
[1761280400899,19.30458828,111120.0,111110.0,1.8231724]
[1761280401118,18.05322747,111120.0,111110.0,1.8281724]
[1761280401339,17.57539157,111120.0,111110.0,1.81092782]
[1761280401558,16.79803268,111120.0,111110.0,1.81092782]
[1761280401774,16.48815948,111120.0,111110.0,3.79792782]
[1761280401995,16.4611932,111120.0,111110.0,3.81292782]
[1761280402216,16.17796771,111120.0,111110.0,3.81292782]
[1761280402444,7.64419855,111120.0,111110.0,1.88774683]
[1761280402677,5.37711213,111120.0,111110.0,1.90274683]
[1761280402904,4.75670197,111120.0,111110.0,1.88774683]
[1761280403116,3.83351422,111120.0,111110.0,1.72480744]
[1761280403344,3.34940099,111120.0,111110.0,1.89757789]
[1761280403570,3.02530097,111120.0,111110.0,3.8843339]
[1761280403799,2.87681565,111120.0,111110.0,3.8651792]
[1761280404026,2.76513338,111120.0,111110.0,4.18740875]
[1761280404242,2.47776358,111120.0,111110.0,4.06137647]
[1761280404456,2.29663869,111120.0,111110.0,4.04331608]
[1761280404671,2.01117781,111120.0,111110.0,4.04331608]
[1761280404885,1.9167524,111120.0,111110.0,4.03831608]
[1761280405091,1.88978612,111120.0,111110.0,4.07949836]
[1761280405316,1.32849563,111120.0,111110.0,4.10203425]